[Event "European Online Club-ch-I 2021"]
[Site "Online"]
[Date "2021.03.27"]
[Round "1.1"]
[White "Moranda, Wojciech"]
[Black "Verdier, Patrice"]
[Result "1-0"]
[ECO "A57"]
[WhiteElo "2618"]
[BlackElo "2109"]
[Annotator "ChessBase"]
[PlyCount "65"]
[EventDate "2021.03.27"]
[EventType "team-tourn"]
[EventCountry "NET"]
[SourceTitle "playchess.com"]
[Source "ChessBase"]
[SourceQuality "1"]
[TimeControl "900+5"]

1. d4 {[%emt 0:00:00]} Nf6 {[%emt 0:00:11]} 2. c4 {[%emt 0:00:02]} c5 {[%emt 0:00:02]} 3. d5 {[%emt 0:00:02]} b5 {[%emt 0:00:02]} 4. cxb5 {[%emt 0:00:01]} a6 {[%emt 0:00:02]} 5. e3 {[%emt 0:00:01]} g6 {[%emt 0:00:04]} 6. Nc3 {[%emt 0:00:02]} Bg7 {[%emt 0:00:03]} 7. a4 {[%emt 0:00:02]} O-O {[%emt 0:00:07]} 8. e4 {[%emt 0:00:02]} d6 {[%emt 0:00:17]} 9. Nf3 {[%emt 0:00:03]} Nbd7 {[%emt 0:00:57]} 10. Bd2 {[%emt 0:00:14]} Bb7 {[%emt 0:00:16]} 11. Qc2 {[%emt 0:00:51]} e6 {[%emt 0:00:17]} 12. bxa6 {[%emt 0:00:02]} Bxa6 {[%emt 0:00:03]} 13. Bxa6 {[%emt 0:00:02]} Rxa6 {[%emt 0:00:02]} 14. dxe6 {[%emt 0:00:19]} fxe6 {[%emt 0:00:03]} 15. O-O {[%emt 0:00:03]} d5 {[%emt 0:00:42]} 16. exd5 {[%emt 0:00:11]} exd5 {[%emt 0:00:03]} 17. Bg5 {[%emt 0:00:30]} Qa8 {[%emt 0:00:46]} 18. Rfe1 {[%emt 0:00:59]} d4 {[%emt 0:02:55]} 19. Nb5 {[%emt 0:01:12]} Nd5 {[%emt 0:02:09]} 20. b3 {[%emt 0:03:06]} Kh8 {[%emt 0:00:58]} 21. Rad1 {[%emt 0:00:53]} Qb8 {[%emt 0:01:20]} 22. Qe4 {[%emt 0:00:57]} N7f6 {[%emt 0:00:32]} 23. Bxf6 {[%emt 0:00:53]} Nxf6 {[%emt 0:00:07]} 24. Qe5 {[%emt 0:00:17]} Qc8 {[%emt 0:01:09]} 25. Rc1 {[%emt 0:00:08]} Nd7 {[%emt 0:00:07]} 26. Qg3 {[%emt 0:00:37]} Raf6 {[%emt 0:00:28]} 27. Nbxd4 {[%emt 0:00:15]} Qb7 {[%emt 0:00:15]} 28. Ne6 {[%emt 0:00:35]} Rxe6 {[%emt 0:00:20]} 29. Rxe6 {[%emt 0:00:03]} Qxb3 {[%emt 0:00:02]} 30. Re7 {[%emt 0:00:30]} Qxa4 {[%emt 0:00:34]} 31. Qc7 {[%emt 0:00:10]} Qa3 {[%emt 0:00:49]} 32. Rce1 {[%emt 0:00:11]} Qc3 {[%emt 0:00:40]} 33. Qxd7 {[%emt 0:00:07]} 1-0

[Event "European Online Club-ch-I 2021"]
[Site "Online"]
[Date "2021.03.27"]
[Round "1.2"]
[White "Van Hoolandt, Patrick"]
[Black "Socko, Bartosz"]
[Result "0-1"]
[ECO "E13"]
[WhiteElo "2017"]
[BlackElo "2618"]
[Annotator "ChessBase"]
[PlyCount "60"]
[EventDate "2021.03.27"]
[EventType "team-tourn"]
[EventCountry "NET"]
[SourceTitle "playchess.com"]
[Source "ChessBase"]
[SourceQuality "1"]
[TimeControl "900+5"]

1. d4 {[%emt 0:00:00]} Nf6 {[%emt 0:00:03]} 2. c4 {[%emt 0:00:03]} e6 {[%emt 0:00:02]} 3. Nf3 {[%emt 0:00:02]} b6 {[%emt 0:00:03]} 4. Nc3 {[%emt 0:00:03]} Bb4 {[%emt 0:00:03]} 5. Bg5 {[%emt 0:00:05]} h6 {[%emt 0:00:06]} 6. Bh4 {[%emt 0:00:02]} Bb7 {[%emt 0:00:06]} 7. e3 {[%emt 0:00:05]} c5 {[%emt 0:00:13]} 8. Bd3 {[%emt 0:00:33]} Nc6 {[%emt 0:00:28]} 9. O-O {[%emt 0:00:07]} Bxc3 {[%emt 0:00:40]} 10. bxc3 {[%emt 0:00:06]} d6 {[%emt 0:00:07]} 11. e4 {[%emt 0:00:37]} e5 {[%emt 0:00:05]} 12. Re1 {[%emt 0:00:24]} g5 {[%emt 0:00:06]} 13. Bg3 {[%emt 0:00:05]} Qc7 {[%emt 0:00:08]} 14. Rc1 {[%emt 0:00:17]} O-O-O {[%emt 0:00:21]} 15. Qa4 {[%emt 0:00:38]} Kb8 {[%emt 0:00:05]} 16. d5 {[%emt 0:00:29]} Ne7 {[%emt 0:00:11]} 17. Nd2 {[%emt 0:00:49]} Ng6 {[%emt 0:00:23]} 18. Qb5 {[%emt 0:00:08]} h5 {[%emt 0:00:04]} 19. f3 {[%emt 0:00:02]} h4 {[%emt 0:00:12]} 20. Bf2 {[%emt 0:00:02]} Nf4 {[%emt 0:00:01]} 21. Bf1 {[%emt 0:00:04]} g4 {[%emt 0:00:03]} 22. a4 {[%emt 0:00:09]} Rdg8 {[%emt 0:00:26]} 23. Re3 {[%emt 0:01:12]} g3 {[%emt 0:01:06]} 24. Be1 {[%emt 0:00:19]} gxh2+ {[%emt 0:00:02]} 25. Kxh2 {[%emt 0:00:04]} N6h5 {[%emt 0:00:17]} 26. a5 {[%emt 0:01:19]} Ng3 {[%emt 0:00:06]} 27. axb6 {[%emt 0:00:37]} Nxf1+ {[%emt 0:00:41]} 28. Nxf1 {[%emt 0:00:02]} Rxg2+ {[%emt 0:00:04]} 29. Kh1 {[%emt 0:00:02]} Qc8 {[%emt 0:00:17]} 30. bxa7+ {[%emt 0:00:11]} Ka8 {[%emt 0:00:04]} 0-1

[Event "European Online Club-ch-I 2021"]
[Site "Online"]
[Date "2021.03.27"]
[Round "1.3"]
[White "Tomczak, Jacek"]
[Black "Meylan, Pierre"]
[Result "1-0"]
[ECO "B16"]
[WhiteElo "2610"]
[BlackElo "2053"]
[Annotator "ChessBase"]
[PlyCount "79"]
[EventDate "2021.03.27"]
[EventType "team-tourn"]
[EventCountry "NET"]
[SourceTitle "playchess.com"]
[Source "ChessBase"]
[SourceQuality "1"]
[TimeControl "900+5"]

1. e4 {[%emt 0:00:00]} c6 {[%emt 0:01:21]} 2. d4 {[%emt 0:00:04]} d5 {[%emt 0:00:08]} 3. Nc3 {[%emt 0:00:02]} dxe4 {[%emt 0:00:13]} 4. Nxe4 {[%emt 0:00:03]} Nf6 {[%emt 0:00:01]} 5. Nxf6+ {[%emt 0:00:03]} gxf6 {[%emt 0:00:03]} 6. c3 {[%emt 0:00:03]} Bf5 {[%emt 0:00:04]} 7. Nf3 {[%emt 0:00:02]} e6 {[%emt 0:00:03]} 8. g3 {[%emt 0:00:01]} Qd5 {[%emt 0:00:21]} 9. Bg2 {[%emt 0:00:03]} Qc4 {[%emt 0:00:03]} 10. Nh4 {[%emt 0:00:04]} Bg6 {[%emt 0:00:14]} 11. Bd2 {[%emt 0:00:48]} Nd7 {[%emt 0:00:19]} 12. Nxg6 {[%emt 0:01:51]} hxg6 {[%emt 0:00:05]} 13. Qc2 {[%emt 0:00:01]} O-O-O {[%emt 0:02:14]} 14. b3 {[%emt 0:00:07]} Qa6 {[%emt 0:00:09]} 15. c4 {[%emt 0:00:06]} c5 {[%emt 0:02:13]} 16. d5 {[%emt 0:00:35]} exd5 {[%emt 0:00:25]} 17. Bxd5 {[%emt 0:00:02]} Re8+ {[%emt 0:00:57]} 18. Kf1 {[%emt 0:00:03]} Re7 {[%emt 0:00:58]} 19. Kg2 {[%emt 0:00:06]} Bh6 {[%emt 0:00:43]} 20. Rae1 {[%emt 0:00:18]} Qd6 {[%emt 0:00:28]} 21. Bxh6 {[%emt 0:00:15]} Rxh6 {[%emt 0:00:10]} 22. Qd2 {[%emt 0:00:01]} Rh8 {[%emt 0:01:10]} 23. Bxb7+ {[%emt 0:00:18]} Kc7 {[%emt 0:00:03]} 24. Bd5 {[%emt 0:00:02]} Rhe8 {[%emt 0:00:58]} 25. Rxe7 {[%emt 0:00:04]} Rxe7 {[%emt 0:00:10]} 26. Re1 {[%emt 0:00:03]} Nb6 {[%emt 0:00:21]} 27. Rxe7+ {[%emt 0:00:07]} Qxe7 {[%emt 0:00:01]} 28. Qf4+ {[%emt 0:00:02]} Kc8 {[%emt 0:00:27]} 29. Bc6 {[%emt 0:00:07]} Nd7 {[%emt 0:00:26]} 30. Bxd7+ {[%emt 0:00:04]} Kxd7 {[%emt 0:00:08]} 31. Qf3 {[%emt 0:00:02]} Qe5 {[%emt 0:00:29]} 32. Qb7+ {[%emt 0:00:05]} Kd8 {[%emt 0:00:11]} 33. Qa8+ {[%emt 0:00:03]} Ke7 {[%emt 0:00:13]} 34. Qxa7+ {[%emt 0:00:02]} Ke6 {[%emt 0:00:04]} 35. Qb7 {[%emt 0:00:13]} f5 {[%emt 0:00:15]} 36. a4 {[%emt 0:00:11]} f4 {[%emt 0:00:03]} 37. a5 {[%emt 0:00:04]} g5 {[%emt 0:00:37]} 38. a6 {[%emt 0:00:05]} g4 {[%emt 0:00:02]} 39. gxf4 {[%emt 0:00:06]} Qxf4 {[%emt 0:00:07]} 40. a7 {[%emt 0:00:05]} 1-0

[Event "European Online Club-ch-I 2021"]
[Site "Online"]
[Date "2021.03.27"]
[Round "1.4"]
[White "Rapaire, Jean-Michel"]
[Black "Klekowski, Maciej"]
[Result "0-1"]
[ECO "B50"]
[WhiteElo "1739"]
[BlackElo "2510"]
[Annotator "ChessBase"]
[PlyCount "62"]
[EventDate "2021.03.27"]
[EventType "team-tourn"]
[EventCountry "NET"]
[SourceTitle "playchess.com"]
[Source "ChessBase"]
[SourceQuality "1"]
[TimeControl "900+5"]

1. e4 {[%emt 0:00:43]} c5 {[%emt 0:00:04]} 2. Nf3 {[%emt 0:00:03]} d6 {[%emt 0:00:02]} 3. a3 {[%emt 0:00:04]} Nc6 {[%emt 0:00:07]} 4. Bc4 {[%emt 0:00:02]} Nf6 {[%emt 0:00:02]} 5. d3 {[%emt 0:00:56]} g6 {[%emt 0:00:14]} 6. c3 {[%emt 0:00:10]} Bg7 {[%emt 0:00:03]} 7. Nbd2 {[%emt 0:00:16]} O-O {[%emt 0:00:02]} 8. Nf1 {[%emt 0:00:06]} d5 {[%emt 0:00:11]} 9. exd5 {[%emt 0:00:59]} Nxd5 {[%emt 0:00:02]} 10. Ng3 {[%emt 0:00:10]} Nb6 {[%emt 0:00:15]} 11. Bb3 {[%emt 0:00:19]} Bg4 {[%emt 0:00:07]} 12. h3 {[%emt 0:01:11]} Bxf3 {[%emt 0:00:02]} 13. Qxf3 {[%emt 0:00:05]} Ne5 {[%emt 0:00:02]} 14. Qe2 {[%emt 0:00:15]} Nxd3+ {[%emt 0:00:04]} 15. Kf1 {[%emt 0:00:08]} c4 {[%emt 0:00:21]} 16. Bc2 {[%emt 0:00:06]} e5 {[%emt 0:00:54]} 17. Kg1 {[%emt 0:01:32]} f5 {[%emt 0:00:05]} 18. b3 {[%emt 0:03:24]} e4 {[%emt 0:00:18]} 19. Bxd3 {[%emt 0:01:05]} cxd3 {[%emt 0:00:03]} 20. Qd2 {[%emt 0:00:12]} Rc8 {[%emt 0:00:04]} 21. Bb2 {[%emt 0:00:03]} Qc7 {[%emt 0:00:31]} 22. Rc1 {[%emt 0:00:20]} Rce8 {[%emt 0:00:18]} 23. Nf1 {[%emt 0:00:20]} Nd5 {[%emt 0:00:19]} 24. g3 {[%emt 0:00:56]} f4 {[%emt 0:00:15]} 25. c4 {[%emt 0:00:09]} Bxb2 {[%emt 0:00:09]} 26. Qxb2 {[%emt 0:00:09]} fxg3 {[%emt 0:01:17]} 27. cxd5 {[%emt 0:01:07]} gxf2+ {[%emt 0:00:01]} 28. Kg2 {[%emt 0:00:17]} Qf4 {[%emt 0:00:11]} 29. Qd2 {[%emt 0:00:54]} e3 {[%emt 0:00:27]} 30. Nxe3 {[%emt 0:00:18]} Qf3+ {[%emt 0:00:08]} 31. Kh2 {[%emt 0:00:07]} Rxe3 {[%emt 0:00:02]} 0-1

[Event "European Online Club-ch-I 2021"]
[Site "Online"]
[Date "2021.03.27"]
[Round "1.5"]
[White "Mchedlishvili, Mikheil"]
[Black "Stephan, Victor"]
[Result "1-0"]
[ECO "A65"]
[WhiteElo "2570"]
[BlackElo "2430"]
[Annotator "ChessBase"]
[PlyCount "87"]
[EventDate "2021.03.27"]
[EventType "team-tourn"]
[EventCountry "NET"]
[SourceTitle "playchess.com"]
[Source "ChessBase"]
[SourceQuality "1"]
[TimeControl "900+5"]

1. d4 {[%emt 0:00:00]} Nf6 {[%emt 0:00:04]} 2. c4 {[%emt 0:00:03]} e6 {[%emt 0:00:02]} 3. Nc3 {[%emt 0:00:03]} c5 {[%emt 0:00:02]} 4. d5 {[%emt 0:00:03]} exd5 {[%emt 0:00:02]} 5. cxd5 {[%emt 0:00:02]} d6 {[%emt 0:00:02]} 6. e4 {[%emt 0:00:02]} g6 {[%emt 0:00:02]} 7. Nge2 {[%emt 0:00:33]} Bg7 {[%emt 0:00:29]} 8. Ng3 {[%emt 0:00:05]} O-O {[%emt 0:00:04]} 9. Be2 {[%emt 0:00:02]} a6 {[%emt 0:00:29]} 10. a4 {[%emt 0:00:29]} Nbd7 {[%emt 0:00:18]} 11. O-O {[%emt 0:00:13]} Re8 {[%emt 0:01:08]} 12. h3 {[%emt 0:00:23]} Rb8 {[%emt 0:00:25]} 13. Bg5 {[%emt 0:00:11]} h6 {[%emt 0:00:47]} 14. Bf4 {[%emt 0:00:52]} Qe7 {[%emt 0:00:38]} 15. Qd2 {[%emt 0:00:11]} h5 {[%emt 0:00:09]} 16. Bg5 {[%emt 0:00:04]} Qf8 {[%emt 0:00:08]} 17. f4 {[%emt 0:00:18]} Nh7 {[%emt 0:01:15]} 18. Bh4 {[%emt 0:00:03]} Bd4+ {[%emt 0:01:13]} 19. Kh1 {[%emt 0:00:05]} Qg7 {[%emt 0:00:02]} 20. Rae1 {[%emt 0:01:05]} Ndf6 {[%emt 0:00:41]} 21. Bd3 {[%emt 0:00:33]} Bd7 {[%emt 0:00:39]} 22. Nce2 {[%emt 0:00:21]} Bxa4 {[%emt 0:00:18]} 23. Nxd4 {[%emt 0:00:03]} cxd4 {[%emt 0:00:02]} 24. Qb4 {[%emt 0:00:20]} Bb5 {[%emt 0:00:32]} 25. Bxb5 {[%emt 0:00:04]} axb5 {[%emt 0:00:01]} 26. Qxd6 {[%emt 0:01:28]} Qf8 {[%emt 0:01:19]} 27. Qxf8+ {[%emt 0:00:16]} Kxf8 {[%emt 0:00:02]} 28. d6 {[%emt 0:00:10]} Rbc8 {[%emt 0:02:18]} 29. e5 {[%emt 0:00:04]} Nd7 {[%emt 0:00:01]} 30. Be7+ {[%emt 0:01:12]} Rxe7 {[%emt 0:00:36]} 31. dxe7+ {[%emt 0:00:03]} Kxe7 {[%emt 0:00:02]} 32. Ne2 {[%emt 0:00:18]} Rc2 {[%emt 0:00:19]} 33. Nxd4 {[%emt 0:00:04]} Rxb2 {[%emt 0:00:02]} 34. Rb1 {[%emt 0:00:03]} Rd2 {[%emt 0:00:24]} 35. Nxb5 {[%emt 0:00:25]} g5 {[%emt 0:00:16]} 36. Nd6 {[%emt 0:00:14]} gxf4 {[%emt 0:00:14]} 37. Rxb7 {[%emt 0:00:03]} Ke6 {[%emt 0:00:02]} 38. Rxf4 {[%emt 0:01:26]} Nxe5 {[%emt 0:00:03]} 39. Nxf7 {[%emt 0:00:12]} Nd3 {[%emt 0:00:16]} 40. Rf3 {[%emt 0:00:36]} Kd5 {[%emt 0:00:55]} 41. Rd7+ {[%emt 0:00:22]} Ke4 {[%emt 0:00:02]} 42. Nd6+ {[%emt 0:00:04]} Kd4 {[%emt 0:00:02]} 43. Rxd3+ {[%emt 0:00:41]} Rxd3 {[%emt 0:00:08]} 44. Rxh7 {[%emt 0:00:02]} 1-0

[Event "European Online Club-ch-I 2021"]
[Site "Online"]
[Date "2021.03.27"]
[Round "1.6"]
[White "Bilquez, Romain"]
[Black "Ibarra Jerez, Jose Carlos"]
[Result "0-1"]
[ECO "B22"]
[WhiteElo "2276"]
[BlackElo "2553"]
[Annotator "ChessBase"]
[PlyCount "114"]
[EventDate "2021.03.27"]
[EventType "team-tourn"]
[EventCountry "NET"]
[SourceTitle "playchess.com"]
[Source "ChessBase"]
[SourceQuality "1"]
[TimeControl "900+5"]

1. e4 {[%emt 0:00:00]} c5 {[%emt 0:00:14]} 2. c3 {[%emt 0:00:09]} Nf6 {[%emt 0:00:04]} 3. e5 {[%emt 0:00:06]} Nd5 {[%emt 0:00:06]} 4. d4 {[%emt 0:00:01]} cxd4 {[%emt 0:00:03]} 5. Nf3 {[%emt 0:00:01]} Nc6 {[%emt 0:00:12]} 6. cxd4 {[%emt 0:00:02]} d6 {[%emt 0:00:05]} 7. Bc4 {[%emt 0:00:08]} dxe5 {[%emt 0:00:13]} 8. dxe5 {[%emt 0:00:06]} Ndb4 {[%emt 0:00:02]} 9. Qxd8+ {[%emt 0:00:07]} Nxd8 {[%emt 0:00:09]} 10. Na3 {[%emt 0:00:17]} Bg4 {[%emt 0:00:16]} 11. Nd4 {[%emt 0:00:54]} e6 {[%emt 0:00:39]} 12. Bb5+ {[%emt 0:00:23]} Ndc6 {[%emt 0:00:16]} 13. Be3 {[%emt 0:03:55]} Be7 {[%emt 0:00:47]} 14. f3 {[%emt 0:01:22]} Bh5 {[%emt 0:00:12]} 15. Rc1 {[%emt 0:00:04]} O-O {[%emt 0:00:17]} 16. Nxc6 {[%emt 0:00:46]} bxc6 {[%emt 0:00:08]} 17. Bxc6 {[%emt 0:00:24]} Nd3+ {[%emt 0:00:43]} 18. Ke2 {[%emt 0:00:50]} Nxc1+ {[%emt 0:00:35]} 19. Rxc1 {[%emt 0:00:00]} Rab8 {[%emt 0:01:48]} 20. Nc4 {[%emt 0:01:09]} Rfc8 {[%emt 0:00:22]} 21. Ba4 {[%emt 0:01:04]} Rc7 {[%emt 0:01:49]} 22. b3 {[%emt 0:00:15]} Rd8 {[%emt 0:00:23]} 23. Bd2 {[%emt 0:00:14]} Rd5 {[%emt 0:00:12]} 24. Ne3 {[%emt 0:00:41]} Rdc5 {[%emt 0:00:42]} 25. Nc4 {[%emt 0:00:57]} Bg6 {[%emt 0:00:34]} 26. Bb4 {[%emt 0:02:01]} Rxc4 {[%emt 0:00:13]} 27. Rxc4 {[%emt 0:00:11]} Rxc4 {[%emt 0:00:04]} 28. Bxe7 {[%emt 0:00:01]} Rc2+ {[%emt 0:00:04]} 29. Ke3 {[%emt 0:00:03]} Rxa2 {[%emt 0:00:05]} 30. Bc5 {[%emt 0:00:01]} a6 {[%emt 0:00:06]} 31. g4 {[%emt 0:00:02]} Rxh2 {[%emt 0:00:07]} 32. b4 {[%emt 0:00:09]} h5 {[%emt 0:00:16]} 33. gxh5 {[%emt 0:00:04]} Rxh5 {[%emt 0:00:13]} 34. Bd4 {[%emt 0:00:08]} Rh2 {[%emt 0:00:18]} 35. Bb3 {[%emt 0:00:06]} Bh5 {[%emt 0:00:27]} 36. Bc4 {[%emt 0:00:06]} Rh3 {[%emt 0:00:05]} 37. Be2 {[%emt 0:00:14]} g5 {[%emt 0:00:28]} 38. Kf2 {[%emt 0:00:03]} Rh4 {[%emt 0:00:13]} 39. Bc3 {[%emt 0:00:27]} Rf4 {[%emt 0:00:07]} 40. Bd2 {[%emt 0:00:25]} Rf5 {[%emt 0:00:06]} 41. Kg3 {[%emt 0:00:04]} Kg7 {[%emt 0:00:40]} 42. Be3 {[%emt 0:00:14]} Kh6 {[%emt 0:00:09]} 43. Bd4 {[%emt 0:00:07]} Kg7 {[%emt 0:00:34]} 44. Be3 {[%emt 0:00:03]} Kf8 {[%emt 0:00:08]} 45. Bc5+ {[%emt 0:00:03]} Ke8 {[%emt 0:00:08]} 46. Bxa6 {[%emt 0:00:02]} Rxf3+ {[%emt 0:00:20]} 47. Kg2 {[%emt 0:00:02]} Rb3 {[%emt 0:00:09]} 48. Bc4 {[%emt 0:00:06]} Bf3+ {[%emt 0:00:46]} 49. Kf2 {[%emt 0:00:03]} Rc3 {[%emt 0:00:04]} 50. Bb5+ {[%emt 0:00:02]} Kd8 {[%emt 0:00:02]} 51. Bd4 {[%emt 0:00:13]} Rb3 {[%emt 0:00:08]} 52. Bc5 {[%emt 0:00:10]} Bd5 {[%emt 0:00:08]} 53. Bb6+ {[%emt 0:00:03]} Kc8 {[%emt 0:00:02]} 54. Bc5 {[%emt 0:00:03]} g4 {[%emt 0:00:03]} 55. Be8 {[%emt 0:00:01]} g3+ {[%emt 0:00:03]} 56. Ke2 {[%emt 0:00:02]} g2 {[%emt 0:00:17]} 57. Ba4 {[%emt 0:00:08]} Rxb4 {[%emt 0:00:08]} 0-1

[Event "European Online Club-ch-I 2021"]
[Site "Online"]
[Date "2021.03.27"]
[Round "1.7"]
[White "Cuenca Jimenez, Jose Fernando"]
[Black "Martsynovskaya, Marina"]
[Result "1-0"]
[ECO "A84"]
[WhiteElo "2506"]
[BlackElo "2046"]
[Annotator "ChessBase"]
[PlyCount "59"]
[EventDate "2021.03.27"]
[EventType "team-tourn"]
[EventCountry "NET"]
[SourceTitle "playchess.com"]
[Source "ChessBase"]
[SourceQuality "1"]
[TimeControl "900+5"]

1. c4 {[%emt 0:00:00]} f5 {[%emt 0:00:04]} 2. Nc3 {[%emt 0:00:15]} Nf6 {[%emt 0:00:03]} 3. d4 {[%emt 0:00:06]} e6 {[%emt 0:00:03]} 4. Nf3 {[%emt 0:00:10]} d5 {[%emt 0:00:25]} 5. Bf4 {[%emt 0:00:12]} c6 {[%emt 0:00:08]} 6. e3 {[%emt 0:00:04]} Bd6 {[%emt 0:00:23]} 7. Bd3 {[%emt 0:00:23]} O-O {[%emt 0:00:10]} 8. O-O {[%emt 0:00:15]} b6 {[%emt 0:02:25]} 9. Rc1 {[%emt 0:00:28]} Ne4 {[%emt 0:01:10]} 10. Bxd6 {[%emt 0:00:36]} Qxd6 {[%emt 0:00:22]} 11. Ne5 {[%emt 0:00:37]} Bb7 {[%emt 0:01:07]} 12. f4 {[%emt 0:01:47]} Nd7 {[%emt 0:00:16]} 13. Bxe4 {[%emt 0:00:45]} fxe4 {[%emt 0:00:18]} 14. Nxd7 {[%emt 0:01:18]} Qxd7 {[%emt 0:00:03]} 15. Qa4 {[%emt 0:00:15]} Qe7 {[%emt 0:01:10]} 16. Rf2 {[%emt 0:02:04]} Kh8 {[%emt 0:00:36]} 17. c5 {[%emt 0:00:41]} bxc5 {[%emt 0:00:38]} 18. Qa3 {[%emt 0:00:02]} Rf7 {[%emt 0:00:26]} 19. Qxc5 {[%emt 0:00:26]} Qxc5 {[%emt 0:00:41]} 20. dxc5 {[%emt 0:00:01]} Ba6 {[%emt 0:00:03]} 21. Nb1 {[%emt 0:01:14]} Kg8 {[%emt 0:00:05]} 22. Nd2 {[%emt 0:00:03]} e5 {[%emt 0:00:29]} 23. fxe5 {[%emt 0:00:13]} Rxf2 {[%emt 0:00:03]} 24. Kxf2 {[%emt 0:00:02]} Kf7 {[%emt 0:00:01]} 25. Nb3 {[%emt 0:00:13]} Rb8 {[%emt 0:00:41]} 26. Rc2 {[%emt 0:00:09]} Ke7 {[%emt 0:01:16]} 27. Nd4 {[%emt 0:00:09]} Kd7 {[%emt 0:00:21]} 28. Ke1 {[%emt 0:00:06]} Re8 {[%emt 0:00:22]} 29. e6+ {[%emt 0:00:13]} Kc7 {[%emt 0:00:01]} 30. Rf2 {[%emt 0:00:02]} 1-0

[Event "European Online Club-ch-I 2021"]
[Site "Online"]
[Date "2021.03.27"]
[Round "1.8"]
[White "Devallee, Jeremie"]
[Black "Terry, Renato"]
[Result "0-1"]
[ECO "C00"]
[WhiteElo "2220"]
[BlackElo "2504"]
[Annotator "ChessBase"]
[PlyCount "52"]
[EventDate "2021.03.27"]
[EventType "team-tourn"]
[EventCountry "NET"]
[SourceTitle "playchess.com"]
[Source "ChessBase"]
[SourceQuality "1"]
[TimeControl "900+5"]

1. e4 {[%emt 0:00:00]} e6 {[%emt 0:00:05]} 2. Nf3 {[%emt 0:00:04]} d5 {[%emt 0:00:02]} 3. e5 {[%emt 0:00:02]} c5 {[%emt 0:00:08]} 4. b4 {[%emt 0:00:01]} cxb4 {[%emt 0:00:12]} 5. d4 {[%emt 0:00:04]} Nc6 {[%emt 0:00:23]} 6. a3 {[%emt 0:00:02]} f6 {[%emt 0:01:41]} 7. axb4 {[%emt 0:00:07]} Bxb4+ {[%emt 0:00:09]} 8. c3 {[%emt 0:00:01]} Be7 {[%emt 0:00:03]} 9. Bd3 {[%emt 0:00:06]} f5 {[%emt 0:00:48]} 10. g4 {[%emt 0:01:35]} fxg4 {[%emt 0:01:24]} 11. Ng1 {[%emt 0:00:05]} h5 {[%emt 0:01:24]} 12. h3 {[%emt 0:00:58]} Nh6 {[%emt 0:00:44]} 13. Bg6+ {[%emt 0:00:44]} Kd7 {[%emt 0:00:03]} 14. Bxh5 {[%emt 0:00:22]} g3 {[%emt 0:00:40]} 15. fxg3 {[%emt 0:00:32]} Nf5 {[%emt 0:00:03]} 16. Bg4 {[%emt 0:02:52]} Nxg3 {[%emt 0:00:07]} 17. Qf3 {[%emt 0:04:04]} Kc7 {[%emt 0:01:21]} 18. Ba3 {[%emt 0:01:14]} Nxh1 {[%emt 0:00:26]} 19. Qxh1 {[%emt 0:00:10]} Bxa3 {[%emt 0:01:07]} 20. Nxa3 {[%emt 0:00:03]} Qh4+ {[%emt 0:00:02]} 21. Kd2 {[%emt 0:00:43]} Qxg4 {[%emt 0:00:04]} 22. Nb5+ {[%emt 0:00:04]} Kb8 {[%emt 0:01:05]} 23. Ne2 {[%emt 0:00:19]} Rxh3 {[%emt 0:00:19]} 24. Qf1 {[%emt 0:00:22]} Qg5+ {[%emt 0:00:15]} 25. Kc2 {[%emt 0:00:02]} Qe3 {[%emt 0:01:32]} 26. Nd6 {[%emt 0:00:24]} Rf3 {[%emt 0:00:26]} 0-1

[Event "European Online Club-ch-I 2021"]
[Site "Online"]
[Date "2021.03.27"]
[Round "1.9"]
[White "Saric, Ivan"]
[Black "Hurdzan, Tomas"]
[Result "1-0"]
[ECO "C01"]
[WhiteElo "2648"]
[BlackElo "2317"]
[Annotator "ChessBase"]
[PlyCount "105"]
[EventDate "2021.03.27"]
[EventType "team-tourn"]
[EventCountry "NET"]
[SourceTitle "playchess.com"]
[Source "ChessBase"]
[SourceQuality "1"]
[TimeControl "900+5"]

1. e3 {[%emt 0:00:00]} e5 {[%emt 0:00:10]} 2. d4 {[%emt 0:00:06]} exd4 {[%emt 0:00:18]} 3. exd4 {[%emt 0:00:03]} d5 {[%emt 0:00:04]} 4. Nf3 {[%emt 0:00:02]} Nf6 {[%emt 0:00:04]} 5. Bd3 {[%emt 0:00:02]} Be7 {[%emt 0:00:11]} 6. h3 {[%emt 0:00:04]} O-O {[%emt 0:00:02]} 7. O-O {[%emt 0:00:02]} h6 {[%emt 0:00:42]} 8. Bf4 {[%emt 0:00:11]} c5 {[%emt 0:00:42]} 9. dxc5 {[%emt 0:00:07]} Bxc5 {[%emt 0:00:01]} 10. Nc3 {[%emt 0:00:46]} Nc6 {[%emt 0:00:09]} 11. a3 {[%emt 0:00:02]} Re8 {[%emt 0:00:13]} 12. Nb5 {[%emt 0:00:22]} Re7 {[%emt 0:01:16]} 13. c4 {[%emt 0:01:41]} dxc4 {[%emt 0:01:53]} 14. Bxc4 {[%emt 0:00:08]} Qxd1 {[%emt 0:00:11]} 15. Rfxd1 {[%emt 0:00:23]} Re4 {[%emt 0:00:10]} 16. Nc7 {[%emt 0:03:40]} Rxc4 {[%emt 0:00:31]} 17. Nxa8 {[%emt 0:00:05]} Rxf4 {[%emt 0:00:01]} 18. Rac1 {[%emt 0:00:10]} Be7 {[%emt 0:00:38]} 19. Ne5 {[%emt 0:00:21]} Be6 {[%emt 0:03:13]} 20. Nxc6 {[%emt 0:00:17]} bxc6 {[%emt 0:00:01]} 21. Rxc6 {[%emt 0:00:18]} a5 {[%emt 0:00:54]} 22. Rc7 {[%emt 0:01:18]} Kf8 {[%emt 0:01:05]} 23. Rb7 {[%emt 0:00:16]} g6 {[%emt 0:00:23]} 24. Nc7 {[%emt 0:00:09]} Bf5 {[%emt 0:00:28]} 25. b4 {[%emt 0:03:01]} axb4 {[%emt 0:00:06]} 26. axb4 {[%emt 0:00:07]} Bxb4 {[%emt 0:00:38]} 27. g4 {[%emt 0:00:18]} Bc2 {[%emt 0:01:36]} 28. Rd8+ {[%emt 0:00:09]} Ke7 {[%emt 0:00:06]} 29. Rdb8 {[%emt 0:00:28]} Bd6 {[%emt 0:01:25]} 30. Nd5+ {[%emt 0:00:54]} Ke6 {[%emt 0:00:02]} 31. Nxf4+ {[%emt 0:00:02]} Bxf4 {[%emt 0:00:01]} 32. Rf8 {[%emt 0:00:36]} Nd7 {[%emt 0:00:15]} 33. Rxd7 {[%emt 0:00:04]} Kxd7 {[%emt 0:00:08]} 34. Rxf7+ {[%emt 0:00:01]} Ke6 {[%emt 0:00:02]} 35. Rxf4 {[%emt 0:00:02]} g5 {[%emt 0:00:02]} 36. Rb4 {[%emt 0:00:03]} Kf6 {[%emt 0:00:03]} 37. Kh2 {[%emt 0:00:01]} Bg6 {[%emt 0:00:02]} 38. Kg3 {[%emt 0:00:02]} Kg7 {[%emt 0:00:02]} 39. h4 {[%emt 0:00:04]} Bd3 {[%emt 0:00:05]} 40. Rd4 {[%emt 0:00:06]} Bc2 {[%emt 0:00:02]} 41. Rd5 {[%emt 0:00:01]} Kf6 {[%emt 0:00:08]} 42. Rd6+ {[%emt 0:00:02]} Kg7 {[%emt 0:00:02]} 43. f4 {[%emt 0:00:01]} gxf4+ {[%emt 0:00:02]} 44. Kxf4 {[%emt 0:00:02]} Bb1 {[%emt 0:00:01]} 45. Rd7+ {[%emt 0:00:17]} Kf6 {[%emt 0:00:09]} 46. Rb7 {[%emt 0:00:10]} Bc2 {[%emt 0:00:02]} 47. Rb6+ {[%emt 0:00:02]} Kg7 {[%emt 0:00:03]} 48. Rd6 {[%emt 0:00:03]} Bb1 {[%emt 0:00:01]} 49. Ke5 {[%emt 0:00:01]} Bc2 {[%emt 0:00:11]} 50. Rd7+ {[%emt 0:00:08]} Kg8 {[%emt 0:00:19]} 51. Kf6 {[%emt 0:00:06]} Be4 {[%emt 0:00:03]} 52. g5 {[%emt 0:00:02]} hxg5 {[%emt 0:00:01]} 53. hxg5 {[%emt 0:00:01]} 1-0